Workbook

Sheet Brüt
A1: Ay | B1: Brüt Ücret | C1: SGK Devir | D1: SGK MATRAH | E1: SSK İşçi | F1: SSK İşçi İşsizlik | G1: GV Matrahı | H1: Kümülatif GV Matrahı | I1: GV | J1: Damga Vergisi | K1: Net | L1: İşveren Primi | M1: İşveren İşsizlik Primi | N1: Toplam Maliyet
A2: Ocak | B2: 5004 | C2: =IF((IF(A2="Ocak",IFERROR(C1*0,0),IFERROR(C1*1,0)))+B2>SGKTAVAN,(IF(A2="Ocak",IFERROR(C1*0,0),IFERROR(C1*1,0)))+B2-D2,0) -> 0 | D2: =IF(B2+(IF(A2="Ocak",IFERROR(C1*0,0),IFERROR(C1*1,0)))>SGKTAVAN,SGKTAVAN,B2+(IF(A2="Ocak",IFERROR(C1*0,0),IFERROR(C1*1,0)))) -> 5004 | E2: =D2*14/100 -> 700.56 | F2: =D2*1/100 -> 50.04 | G2: =B2-(E2+F2) -> 4253.4 | H2: 0 | I2: =GV(H2,G2,A2) -> 0 | J2: =DV(A2,B2) -> 0 | K2: =B2-(E2+F2+I2+J2) -> 4253.4 | L2: =D2*20.5/100 -> 1025.82 | M2: =D2*2/100 -> 100.08 | N2: =B2+L2+M2 -> 6129.9
A3: Şubat | B3: 5004 | C3: 0 | D3: 5004 | E3: =D3*14/100 -> 700.56 | F3: =D3*1/100 -> 50.04 | G3: 4253.4 | H3: =G2+H2 -> 4253.4 | I3: =GV(H3,G3,A3) -> 0 | J3: =DV(A3,B3) -> 0 | K3: =B3-(E3+F3+I3+J3) -> 4253.4 | L3: =D3*20.5/100 -> 1025.82 | M3: 100.08 | N3: 6129.9
A4: Mart | B4: 5004 | C4: 0 | D4: 5004 | E4: 700.56 | F4: 50.04 | G4: 4253.4 | H4: =G3+H3 -> 8506.8 | I4: 0 | J4: 0 | K4: 4253.4 | L4: =D4*20.5/100 -> 1025.82 | M4: 100.08 | N4: 6129.9
A5: Nisan | B5: 5004 | C5: 0 | D5: 5004 | E5: 700.56 | F5: 50.04 | G5: 4253.4 | H5: 12760.2 | I5: 0 | J5: 0 | K5: 4253.4 | L5: 1025.82 | M5: 100.08 | N5: 6129.9
A6: Mayıs | B6: 5004 | C6: 0 | D6: 5004 | E6: 700.56 | F6: 50.04 | G6: 4253.4 | H6: 17013.6 | I6: 0 | J6: 0 | K6: 4253.4 | L6: 1025.82 | M6: 100.08 | N6: 6129.9
A7: Haziran | B7: 5004 | C7: 0 | D7: 5004 | E7: 700.56 | F7: 50.04 | G7: 4253.4 | H7: 21267 | I7: =GV(H7,G7,A7) -> 0 | J7: 0 | K7: 4253.4 | L7: 1025.82 | M7: 100.08 | N7: 6129.9
A8: Temmuz | B8: 6471 | C8: 0 | D8: 6471 | E8: 905.94 | F8: 64.71 | G8: 5500.35 | H8: 25520.4 | I8: 0.0025 | J8: 0 | K8: 5500.3475 | L8: 1326.555 | M8: 129.42 | N8: 7926.975
A9: Ağustos | B9: 6471 | C9: 0 | D9: 6471 | E9: 905.94 | F9: 64.71 | G9: 5500.35 | H9: 31020.75 | I9: 0 | J9: 0 | K9: 5500.35 | L9: 1326.555 | M9: 129.42 | N9: 7926.975
A10: Eylül | B10: 6471 | C10: 0 | D10: 6471 | E10: 905.94 | F10: 64.71 | G10: 5500.35 | H10: 36521.1 | I10: 2.273736754e-13 | J10: 0 | K10: 5500.35 | L10: 1326.555 | M10: 129.42 | N10: 7926.975
A11: Ekim | B11: 6471 | C11: 0 | D11: 6471 | E11: 905.94 | F11: 64.71 | G11: 5500.35 | H11: 42021.45 | I11: 2.273736754e-13 | J11: 0 | K11: 5500.35 | L11: 1326.555 | M11: 129.42 | N11: 7926.975
A12: Kasım | B12: 6471 | C12: 0 | D12: 6471 | E12: 905.94 | F12: 64.71 | G12: 5500.35 | H12: 47521.8 | I12: 2.273736754e-13 | J12: 0 | K12: 5500.35 | L12: 1326.555 | M12: 129.42 | N12: 7926.975
A13: Aralık | B13: 6471 | C13: 0 | D13: 6471 | E13: 905.94 | F13: 64.71 | G13: 5500.35 | H13: 53022.15 | I13: 2.273736754e-13 | J13: 0 | K13: 5500.35 | L13: 1326.555 | M13: 129.42 | N13: 7926.975
A14: Toplam | B14: =SUM(B2:B13) -> 68850 | E14: =SUM(E2:E13) -> 9639 | F14: =SUM(F2:F13) -> 688.5 | H14: 58522.5 | I14: =SUM(I2:I13) -> 0.002500000001 | J14: 0 | K14: 58522.4975 | L14: 14114.25 | M14: 1377 | N14: 84341.25

Sheet Parametre
A1: Vergi Dilimler Aralıkları | C1: Vergi Oranı
A2: 0 | B2: 32000 | C2: 15
A3: 32000 | B3: 70000 | C3: 20
A4: 70000 | B4: 250000 | C4: 27
A5: 250000 | B5: 880000 | C5: 35
A6: 880000 | C6: 40
B8: OCAK 2022 | C8: TEMMUZ 2022
A9: Asgari Ücret | B9: 5004 | C9: 6471
A10: SGK Tavanı | B10: 37530 | C10: 48532.5
A11: Damga Vergisi Matrahı | B11: 0.00759 | C11: 0.00759
